bitfinex/quotes_SOLUSD_20250830
["timestamp","ask_amount","ask_price","bid_price","bid_amount"]
[1756563717469,4.84262655,199.1,199.07,39.28]
[1756563718586,5.35262655,199.1,199.07,39.28]
[1756563719065,5.35262655,199.1,199.08,5.02310628]
[1756563719266,5.35262655,199.1,199.09,39.28]
[1756563719764,4.84262655,199.1,199.09,39.28]
[1756563719984,7.46345387,199.1,199.09,39.28]
[1756563720191,2.68082732,199.1,199.09,44.30285398]
[1756563720383,0.06,199.1,199.09,44.30285398]
[1756563720580,5.35262655,199.1,199.07,7.463454]
[1756563720886,5.35262655,199.1,199.08,39.28]
[1756563720887,0.51,199.09,199.08,39.28]
[1756563721894,5.29262655,199.09,199.08,39.28]
[1756563722699,5.29262655,199.09,199.07,39.28]
[1756563722897,5.29262655,199.08,199.07,39.28]
[1756563723191,0.57,199.1,199.07,39.28]
[1756563723487,0.06,199.1,199.07,39.28]
[1756563723788,4.78262655,199.09,199.07,39.28]
[1756563723978,4.78262655,199.08,199.07,39.28]
[1756563724373,4.78262655,199.08,199.07,44.30335861]
[1756563724584,0.06,199.1,199.07,44.98335861]
[1756563724800,0.06,199.1,199.08,0.68]
[1756563724963,4.84262655,199.1,199.07,44.30335861]
[1756563725168,4.78262655,199.09,199.07,44.30335861]
[1756563725565,4.78262655,199.08,199.06,11.61948]
[1756563725771,5.29262655,199.07,199.01,5.02487312]
[1756563725993,4.78262655,199.03,199.02,39.28]
[1756563726287,4.78262655,199.03,199.02,44.30462064]
[1756563726887,5.29262655,199.03,199.0,0.03]
[1756563727094,4.78262655,199.01,199.0,0.03]
[1756563727995,5.29262655,199.01,199.0,0.03]
[1756563728377,0.51,199.01,199.0,0.03]
[1756563728690,4.78262655,199.01,199.0,0.03]
[1756563729470,5.29262655,199.01,199.0,0.03]
[1756563731982,14.29129306,199.01,199.0,0.03]
[1756563732384,10.0752531,199.01,199.0,0.03]
[1756563733398,14.29129306,199.01,199.0,0.03]
[1756563733699,19.31616618,199.01,199.0,0.03]
[1756563733901,15.10012622,199.01,199.0,0.03]
[1756563734386,15.10012622,199.01,198.98,0.03]
[1756563734387,30.78262655,198.99,198.98,0.03]
[1756563734585,35.00394432,198.99,198.98,0.03]
[1756563734803,31.29262655,198.99,198.98,0.03]
[1756563735295,36.3180047,198.99,198.98,0.03]
[1756563735504,31.29262655,198.99,198.98,0.03]
[1756563735709,4.73352475,198.99,198.98,0.03]
[1756563736221,5.24352475,198.99,198.98,0.03]
[1756563737309,26.0,199.0,198.98,0.03]
[1756563737489,5.29262655,198.99,198.98,0.03]
[1756563738521,4.78262655,198.99,198.98,0.03]
[1756563741941,4.78262655,198.99,198.98,0.71]
[1756563742319,4.78262655,199.0,198.98,0.71]
[1756563742632,4.78262655,198.99,198.98,0.71]
[1756563742835,4.78262655,198.99,198.98,5.73563071]
[1756563743348,5.026369,199.06,198.99,13.59559401]
[1756563743646,5.026369,199.06,199.04,4.78262655]
[1756563743815,0.06,199.09,199.05,0.68]
[1756563744339,0.06,199.09,199.06,4.842627]
[1756563744515,0.06,199.09,199.07,0.68]
[1756563744839,0.06,199.09,199.07,5.70321046]
[1756563745153,0.06,199.09,199.08,5.522627]
[1756563745956,4.84262655,199.09,199.08,4.842627]
[1756563746127,4.84262655,199.09,199.06,5.70352934]
[1756563746326,4.84262655,199.09,199.07,4.842627]
[1756563746526,4.84262655,199.09,199.07,5.522627]
[1756563747651,0.06,199.09,199.08,0.68]
[1756563747949,0.06,199.09,199.08,5.522626]
[1756563748818,0.06,199.09,199.08,10.54573228]
[1756563749834,4.84262655,199.09,199.08,10.54573228]
[1756563750641,31.35262655,199.09,199.08,4.842626]
[1756563751127,31.35262655,199.09,199.03,0.68]
[1756563751330,4.78262655,199.04,199.03,5.70436818]
[1756563751924,4.78262655,199.04,199.01,10.04861829]
[1756563752125,4.78262655,199.03,199.02,0.7]
[1756563752534,4.78262655,199.03,199.02,5.72462064]
[1756563753237,4.78262655,199.03,198.99,122.7]
[1756563753437,4.78262655,199.02,198.99,0.7]
[1756563753829,4.78262655,199.02,199.0,0.7]
[1756563754036,4.78262655,199.01,199.0,0.7]
[1756563756777,4.78262655,199.03,199.0,5.72512562]
[1756563757065,4.78262655,199.03,199.01,0.7]
[1756563757356,4.78262655,199.03,199.02,0.03]
[1756563757531,4.78262655,199.03,199.02,0.73]
[1756563758238,0.06,199.08,199.02,0.73]
[1756563758239,0.06,199.08,199.02,5.512627]
[1756563758440,4.78262655,199.03,199.02,5.512627]
[1756563758651,4.78262655,199.03,199.02,10.53724764]
[1756563759761,4.78262655,199.03,199.02,4.812627]
[1756563759951,4.78262655,199.03,199.02,5.75462064]
[1756563760338,4.78262655,199.03,199.02,10.53724764]
[1756563760948,0.06,199.08,199.02,10.53724764]
[1756563761267,4.78262655,199.03,199.02,10.53724764]
[1756563761463,4.78262655,199.03,199.02,4.812627]
[1756563761779,4.78262655,199.03,199.02,0.03]
[1756563762147,4.78262655,199.03,199.02,0.73]
[1756563762371,4.78262655,199.03,199.02,0.03]
[1756563762744,4.78262655,199.03,199.02,5.05462064]
[1756563763373,4.78262655,199.03,199.02,0.03]
[1756563764168,4.78262655,199.03,199.02,0.73]
[1756563765380,4.78262655,199.03,199.02,5.75462064]
[1756563765868,4.78262655,199.04,199.02,5.75462064]
[1756563766078,4.78262655,199.04,199.03,0.7]
[1756563766883,4.78262655,199.04,199.03,10.50699418]
[1756563767977,0.06,199.08,199.03,10.50699418]
[1756563768185,4.78262655,199.05,199.04,0.7]
[1756563768684,4.78262655,199.05,199.03,49.14699418]
[1756563768893,4.78262655,199.04,199.03,49.14699418]
[1756563769061,4.78262655,199.04,199.03,49.84699418]
[1756563770860,4.78262655,199.04,199.03,49.14699418]
[1756563771487,4.78262655,199.04,199.03,49.84699418]
[1756563771686,4.78262655,199.04,199.03,45.04436818]
[1756563771983,4.78262655,199.04,199.03,49.82699418]
[1756563772891,4.78262655,199.05,199.03,49.82699418]
[1756563773068,4.78262655,199.05,199.04,0.7]
[1756563773386,4.78262655,199.05,199.04,39.98]
[1756563773766,4.78262655,199.05,199.04,45.00411575]
[1756563774995,4.78262655,199.05,199.04,44.30411575]
[1756563776385,4.78262655,199.05,199.04,5.02411575]
[1756563776583,4.78262655,199.05,199.04,45.00411575]
[1756563777868,0.06,199.08,199.04,45.00411575]
[1756563778068,4.78262655,199.05,199.04,5.02411575]
[1756563778375,4.78262655,199.05,199.04,44.30411575]
[1756563778681,4.78262655,199.05,199.04,49.78674175]
[1756563779793,4.78262655,199.06,199.04,49.78674175]
[1756563779997,0.06,199.08,199.05,0.7]
[1756563780171,0.06,199.08,199.06,39.28]
[1756563780793,0.06,199.08,199.05,4.782626]
[1756563780794,4.78262655,199.07,199.05,4.782626]
[1756563781091,4.78262655,199.06,199.05,5.482626]
[1756563781297,4.78262655,199.07,199.05,0.7]
[1756563781591,4.78262655,199.06,199.05,4.782626]
[1756563781768,4.78262655,199.06,199.05,44.062626]
[1756563781968,4.78262655,199.06,199.05,44.30386335]
[1756563782174,4.78262655,199.07,199.05,49.76649035]
[1756563782585,4.78262655,199.06,199.05,49.08649035]
[1756563784199,4.78262655,199.06,199.05,49.76649035]
[1756563784395,0.06,199.08,199.05,49.76649035]
[1756563784396,4.78262655,199.07,199.05,49.76649035]
[1756563784602,4.78262655,199.07,199.06,0.68]
[1756563785578,4.84262655,199.08,199.06,0.68]
[1756563785777,4.84262655,199.08,199.07,39.96]
[1756563786379,4.84262655,199.08,199.07,44.98335861]
[1756563786690,4.84262655,199.08,199.07,44.30335861]
[1756563787003,4.84262655,199.08,199.07,39.28]
[1756563787387,0.06,199.08,199.07,39.28]
[1756563787706,4.84262655,199.08,199.07,39.28]
[1756563789987,4.84262655,199.08,199.07,44.98335861]
[1756563794598,4.84262655,199.08,199.07,44.30335861]
[1756563795294,4.84262655,199.08,199.06,9.8662027]
[1756563795496,0.06,199.08,199.07,39.28]
[1756563795827,4.84262655,199.08,199.07,39.28]
[1756563795995,4.84262655,199.08,199.07,44.30335861]
[1756563796307,0.06,199.08,199.07,44.98335861]
[1756563796889,0.06,199.08,199.07,46.99710161]
[1756563797811,0.06,199.08,199.07,44.98335861]
[1756563798614,0.06,199.08,199.07,124.58335861]
[1756563801022,0.06,199.08,199.07,44.98335861]
[1756563804527,4.84262655,199.08,199.07,5.02335861]
[1756563804719,4.84262655,199.08,199.05,5.05361637]
[1756563804911,4.84262655,199.08,199.06,44.28350009]
[1756563804912,0.51,199.07,199.06,44.28350009]
[1756563805106,0.06,199.08,199.06,44.28350009]
[1756563805534,0.06,199.08,199.07,39.26]
[1756563806044,4.84262655,199.08,199.07,39.26]
[1756563806620,4.84262655,199.08,199.06,5.02350009]
[1756563806818,0.57,199.08,199.07,39.26]
[1756563807040,5.35262655,199.08,199.07,39.26]
[1756563807225,4.84262655,199.08,199.07,39.26]
[1756563809856,4.84262655,199.08,199.07,44.28335861]
[1756563810048,4.84262655,199.08,199.07,44.96335861]
[1756563810358,4.84262655,199.08,199.06,5.02358679]
[1756563810568,4.78262655,199.07,199.06,5.02358679]
[1756563810867,4.78262655,199.07,199.06,39.26]
[1756563811160,5.29262655,199.07,199.05,44.31383957]
[1756563811365,4.78262655,199.06,199.05,44.31383957]
[1756563812253,5.29262655,199.06,199.05,0.03]
[1756563812439,4.78262655,199.06,199.05,0.03]
[1756563812640,5.29262655,199.06,199.05,0.03]
[1756563816847,4.78262655,199.06,199.05,0.03]
[1756563820175,0.06,199.08,199.05,0.72]
[1756563820373,4.84262655,199.08,199.05,0.72]
[1756563820547,4.84262655,199.08,199.05,39.98]
[1756563820883,0.06,199.09,199.08,39.59559401]
[1756563820884,1e-08,199.09,199.08,39.59559401]
[1756563821045,0.06,199.1,199.08,44.04262655]
[1756563821247,0.06,199.1,199.09,0.69]
[1756563821651,4.84262655,199.1,199.06,4.842627]
[1756563821846,4.84262655,199.1,199.07,0.69]
[1756563822049,4.84262655,199.1,199.08,0.69]
[1756563823459,4.84262655,199.1,199.05,0.03]
[1756563823460,4.78262655,199.09,199.06,0.69]
[1756563823785,30.78262655,199.07,199.05,0.03]
[1756563824075,4.78262655,199.06,199.05,0.03]
[1756563825684,4.78262655,199.06,199.05,0.72]
[1756563831690,4.78262655,199.06,199.05,0.03]
[1756563833669,31.35262655,199.06,199.05,0.03]
[1756563833874,30.78262655,199.06,199.05,0.03]
[1756563834282,4.78262655,199.06,199.05,0.03]
[1756563834485,4.78262655,199.06,199.05,0.72]
[1756563835182,4.78262655,199.06,199.05,0.03]
[1756563837594,4.78262655,199.06,199.05,0.72]
[1756563840271,4.78262655,199.06,199.05,0.03]
[1756563842089,4.78881532,199.09,199.05,0.03]
[1756563842268,4.78262655,199.06,199.05,0.03]
[1756563842590,4.78262655,199.06,199.05,0.72]
[1756563844278,4.78262655,199.06,199.05,5.74386335]
[1756563844495,0.06,199.1,199.05,5.74386335]
[1756563844791,4.78262655,199.09,199.06,0.69]
[1756563845186,0.06,199.1,199.06,0.69]
[1756563845483,4.78262655,199.09,199.06,0.69]
[1756563846415,4.78262655,199.09,199.07,5.02335861]
[1756563846575,4.78262655,199.09,199.08,0.69]
[1756563846777,4.84262655,199.09,199.07,5.02335861]
[1756563847013,4.78262655,199.08,199.07,5.02335861]
[1756563847299,0.06,199.09,199.07,5.02335861]
[1756563847510,4.78262655,199.08,199.07,5.02335861]
[1756563848484,4.78262655,199.08,199.05,0.03]
[1756563848684,4.78262655,199.07,199.06,0.69]
[1756563850086,4.78262655,199.08,199.06,5.71361097]
[1756563850399,4.78262655,199.08,199.07,0.69]
[1756563850900,4.78262655,199.08,199.06,5.71361097]
[1756563851103,4.84262655,199.09,199.07,0.69]
[1756563851280,4.84262655,199.09,199.08,0.69]
[1756563851484,4.84262655,199.09,199.06,5.71361097]
[1756563851699,4.78262655,199.08,199.06,5.71361097]
[1756563851904,4.84262655,199.09,199.06,5.71361097]
[1756563852507,4.78262655,199.08,199.06,5.71361097]
[1756563853599,4.78262655,199.08,199.05,5.05386335]
[1756563853783,4.78262655,199.08,199.07,0.69]
[1756563854287,0.06,199.09,199.07,0.69]
[1756563854487,4.84262655,199.09,199.07,0.69]
[1756563854812,4.78262655,199.08,199.07,0.69]
[1756563855812,4.78262655,199.08,199.07,5.71335861]
[1756563857111,4.78262655,199.08,199.07,5.02335861]
[1756563857303,4.78262655,199.08,199.07,5.71335861]
[1756563857511,0.06,199.09,199.07,5.71335861]
[1756563857692,4.78262655,199.08,199.07,5.71335861]
[1756563857889,4.78262655,199.08,199.05,18.30352172]
[1756563858209,4.78262655,199.08,199.06,0.69]
[1756563858592,4.78262655,199.08,199.07,0.69]
[1756563859493,0.06,199.09,199.07,0.69]
[1756563859692,0.06,199.09,199.07,5.47262655]
[1756563859915,0.06,199.09,199.08,5.02310628]
[1756563860117,4.84262655,199.09,199.08,5.71310628]
[1756563860298,0.06,199.09,199.08,5.02310628]
[1756563860491,0.06,199.09,199.08,5.71310628]
[1756563861604,4.84262655,199.09,199.08,5.02310628]
[1756563862916,4.84262655,199.09,199.07,5.02335861]
[1756563863215,4.78262655,199.08,199.07,5.02335861]
[1756563864199,4.78262655,199.08,199.05,5.05386335]
[1756563864413,4.78262655,199.06,199.05,0.03]
[1756563867016,4.78262655,199.08,199.05,0.72]
[1756563867208,0.06,199.09,199.05,0.72]
[1756563867395,4.78262655,199.08,199.05,0.72]
[1756563868131,0.06,199.09,199.05,0.72]
[1756563868322,4.84262655,199.09,199.06,5.02361097]
[1756563868520,4.84262655,199.09,199.07,0.69]
[1756563868823,4.78262655,199.08,199.07,0.69]
[1756563869519,4.78262655,199.08,199.07,5.71335861]
[1756563871534,4.78262655,199.08,199.07,5.02335861]
[1756563872032,0.06,199.09,199.07,5.70335861]
[1756563872231,4.84262655,199.09,199.07,5.70335861]
[1756563872619,4.78262655,199.08,199.07,5.70335861]
[1756563873912,4.84262655,199.09,199.07,5.70335861]
[1756563875711,4.84262655,199.09,199.07,5.02335861]
[1756563875927,4.84262655,199.09,199.08,0.68]
[1756563876227,4.84262655,199.09,199.07,5.70335861]
[1756563878338,4.84262655,199.09,199.08,0.68]
[1756563878756,0.06,199.09,199.08,0.68]
[1756563879210,0.06,199.09,199.08,5.46262655]
[1756563879612,1e-08,199.09,199.08,8.14422755]
[1756563880729,1e-08,199.09,199.08,13.16733383]
[1756563882018,1e-08,199.09,199.08,8.38470728]
[1756563882207,1e-08,199.09,199.08,13.16733383]
[1756563884737,1e-08,199.09,199.08,135.16733383]
[1756563885714,1e-08,199.09,199.08,174.38733383]
[1756563887416,1e-08,199.09,199.08,169.60470728]
[1756563887735,1e-08,199.09,199.08,187.98292784]
[1756563887928,1e-08,199.09,199.08,65.98292784]
[1756563888632,1e-08,199.11,199.1,39.59559401]
[1756563888824,0.06,199.12,199.11,13.59559401]
[1756563889025,0.06,199.12,199.11,63.30057001]
[1756563889230,0.06,199.13,199.11,63.30057001]
[1756563889433,0.06,199.13,199.12,0.68]
[1756563889841,0.06,199.13,199.12,2.692832]
[1756563890251,0.06,199.13,199.12,39.22]
[1756563890542,0.06,199.13,199.12,39.9]
[1756563891123,0.06,199.13,199.12,49.70472377]
[1756563891641,0.2,199.15,199.12,49.70472377]
[1756563891840,1e-08,199.14,199.13,19.05822056]
[1756563892041,1e-08,199.15,199.13,21.07084956]
[1756563892339,1e-08,199.15,199.14,44.68262655]
[1756563892542,1e-08,199.15,199.14,39.9]
[1756563892718,1e-08,199.15,199.14,39.22]
[1756563893041,1e-08,199.15,199.14,44.92159284]
[1756563893625,1e-08,199.15,199.14,49.70421939]
[1756563893961,1e-08,199.15,199.14,44.92159284]
[1756563894118,1e-08,199.15,199.14,49.70421939]
[1756563895126,2.61972595,199.15,199.14,49.70421939]
[1756563896919,2.61972595,199.15,199.14,171.70421939]
[1756563897658,1e-08,199.15,199.14,171.70421939]
[1756563899124,1e-08,199.15,199.14,171.70421984]
[1756563899333,1e-08,199.15,199.14,176.48684639]
[1756563899742,1e-08,199.15,199.14,132.48421984]
[1756563900044,1e-08,199.15,199.14,49.68421984]
[1756563900648,1e-08,199.15,199.14,54.46684639]
[1756563900649,2.61969768,199.15,199.14,54.46684639]
[1756563901748,2.61969768,199.15,199.14,134.06684639]
[1756563902942,2.61969768,199.15,199.14,256.06684639]
[1756563904351,1e-08,199.15,199.14,269.6624404]
[1756563904650,0.06,199.17,199.16,26.0]
[1756563904953,0.06,199.17,199.16,144.8]
[1756563905322,0.06,199.17,199.16,150.152626]
[1756563905547,0.06,199.17,199.16,124.152626]
[1756563905845,0.06,199.17,199.16,79.6]
[1756563905846,5.41262655,199.17,199.16,79.6]
[1756563906545,0.63,199.17,199.16,84.62108857]
[1756563906750,5.41262655,199.17,199.16,84.62108857]
[1756563907657,5.41262655,199.17,199.16,79.6]
[1756563907850,5.41262655,199.17,199.14,79.6]
[1756563908144,4.78262655,199.15,199.14,79.6]
[1756563908349,5.35262655,199.15,199.11,79.6]
[1756563908529,4.78262655,199.12,199.11,79.6]
[1756563908730,5.35262655,199.12,199.11,79.6]
[1756563909152,5.35262655,199.12,199.08,5.05288422]
[1756563909352,4.78262655,199.09,199.08,0.03]
[1756563909551,5.35262655,199.09,199.08,0.03]
[1756563912426,10.37548053,199.09,199.08,0.03]
[1756563913435,39.59559401,199.08,199.07,0.03]
[1756563913636,4.78262655,199.07,199.05,0.03]
[1756563913949,4.78262655,199.06,199.05,0.03]
[1756563914533,9.80623752,199.06,199.05,0.03]
[1756563915331,9.80623752,199.06,199.04,0.03]
[1756563915332,39.59559401,199.05,199.04,0.03]
[1756563915535,48.43363777,199.05,199.04,0.03]
[1756563916044,44.94822056,199.05,199.04,0.03]
[1756563916835,49.97208391,199.05,199.0,0.03]
[1756563917047,4.78262655,199.04,199.0,0.03]
[1756563917438,0.57,199.1,199.03,0.71]
[1756563917638,4.78262655,199.04,199.03,0.71]
[1756563919240,4.78262655,199.04,199.03,5.73436818]
[1756563921156,4.78262655,199.06,199.03,85.33436818]
[1756563921450,4.78262655,199.06,199.04,0.68]
[1756563921652,50.5,199.12,199.04,0.68]
[1756563921653,4.78262655,199.05,199.04,0.68]
[1756563922444,4.78262655,199.06,199.04,0.68]
[1756563922758,4.78262655,199.05,199.04,0.68]
[1756563922953,4.78262655,199.05,199.04,5.02411575]
[1756563923148,4.78262655,199.05,199.04,5.70411575]
[1756563924534,4.78262655,199.05,199.04,0.68]
[1756563924741,4.78262655,199.05,199.03,20.1589328]
[1756563924945,5.35262655,199.1,199.04,0.68]
[1756563925144,4.78262655,199.05,199.04,0.68]
[1756563925365,5.35262655,199.05,199.03,15.134599]
[1756563925687,0.57,199.04,199.03,15.134599]
[1756563925862,23.40093187,199.1,199.03,0.03]
[1756563925863,26.57,199.07,199.03,0.03]
[1756563926033,4.78262655,199.04,199.03,0.03]
[1756563926651,31.35262655,199.04,199.03,0.03]
[1756563927351,30.78262655,199.04,199.03,0.03]
[1756563928658,31.35262655,199.04,199.03,0.03]
[1756563928855,30.78262655,199.04,199.03,0.03]
[1756563930651,4.78262655,199.04,199.03,0.71]
[1756563931245,26.0,199.06,199.03,0.71]
[1756563931448,4.78262655,199.04,199.03,0.71]
[1756563932551,4.78262655,199.04,199.03,5.73430126]
[1756563932968,4.78262655,199.04,199.03,0.71]
[1756563933177,4.78262655,199.04,199.03,5.73436818]
[1756563933557,4.78262655,199.04,199.03,0.03]
[1756563934450,4.78262655,199.04,199.03,0.69]
[1756563935578,0.06,199.04,199.03,0.69]
[1756563935744,4.84262655,199.04,199.03,4.812626]
[1756563936343,4.84262655,199.04,199.03,0.03]
[1756563937973,5.41262655,199.04,199.03,0.03]
[1756563938277,10.4367423,199.04,199.03,0.03]
[1756563938569,49.6367423,199.04,199.03,0.03]
[1756563939766,10.4367423,199.04,199.03,0.03]
[1756563939968,49.6367423,199.04,199.03,0.03]
[1756563940167,63.23233631,199.04,199.03,0.03]
[1756563940352,24.03233631,199.04,199.03,0.03]
[1756563940554,63.23233631,199.04,199.03,0.03]
[1756563941458,24.03233631,199.04,199.03,0.03]
[1756563941664,63.25233631,199.04,199.03,0.03]
[1756563943587,13.59559401,199.01,199.0,0.03]
[1756563943882,13.59559401,199.01,198.99,0.03]
[1756563943883,23.16084711,199.01,198.99,0.03]
[1756563944183,62.95084711,199.0,198.99,0.03]
[1756563944774,67.97597273,199.0,198.99,0.03]
[1756563947672,67.40597273,199.0,198.99,0.03]
[1756563949869,28.18597273,199.0,198.99,0.03]
[1756563950074,70.00262655,199.0,198.99,0.69]
[1756563950465,74.7852531,199.0,198.99,0.03]
[1756563950788,35.5652531,199.0,198.99,0.03]
[1756563950992,74.7852531,199.0,198.99,0.69]
[1756563951293,70.00262655,199.0,198.99,0.69]
[1756563951474,74.7852531,199.0,198.99,0.03]
[1756563951889,40.59037872,199.0,198.99,0.03]
[1756563952090,79.81037872,199.0,198.99,0.03]
[1756563952777,26.0,199.0,198.99,0.03]
[1756563952983,26.0,199.0,198.99,0.69]
[1756563952984,70.00262655,199.0,198.99,0.69]
[1756563953367,70.06262655,199.0,198.99,0.69]
[1756563954088,70.06262655,199.0,198.99,0.03]
[1756563954291,30.84262655,199.0,198.99,0.03]
[1756563954489,70.06262655,199.0,198.99,0.69]
[1756563954694,30.84262655,199.0,198.99,0.69]
[1756563954907,70.06262655,199.0,198.99,0.69]
[1756563957391,0.06,199.0,198.99,0.69]
[1756563957576,0.06,199.0,198.99,87.33003415]
[1756563960390,0.06,199.0,198.99,82.304656]
[1756563960598,4.84262655,199.0,198.99,82.304656]
[1756563961194,4.84262655,199.0,198.99,2.704656]
[1756563961821,4.84262655,199.0,198.99,7.73003415]
[1756563962112,0.06,199.0,198.99,7.73003415]
[1756563962917,0.06,199.0,198.99,92.1126607]
[1756563963411,0.06,199.0,198.99,131.3326607]
[1756563964813,0.06,199.0,198.99,87.33003415]
[1756563965386,4.84262655,199.0,198.99,2.044656]
[1756563965589,4.84262655,199.0,198.99,2.714656]
[1756563966387,0.06,199.0,198.99,7.74003415]
[1756563966908,4.84262655,199.0,198.99,2.044656]
[1756563967080,4.84262655,199.0,198.99,0.03]
[1756563967512,5.41262655,199.0,198.99,0.03]
[1756563967689,10.1952531,199.0,198.99,0.03]
[1756563969515,9.6252531,199.0,198.99,0.03]
[1756563969919,10.1952531,199.0,198.99,0.03]
[1756563970090,0.06,199.0,198.99,0.03]
[1756563970290,4.84262655,199.0,198.99,0.03]
[1756563970793,9.6252531,199.0,198.99,0.03]
[1756563971608,4.84262655,199.0,198.99,0.7]
[1756563971994,0.06,199.0,198.99,0.7]
[1756563972200,4.84262655,199.0,198.99,0.7]
[1756563975414,4.84262655,199.0,198.99,5.72537815]
[1756563977112,4.84262655,199.0,198.99,10.56800515]
[1756563978191,0.06,199.0,198.99,5.72537815]
[1756563979101,0.06,199.0,198.99,10.50800515]
[1756563979817,4.84262655,199.0,198.99,0.03]
[1756563980317,0.06,199.0,198.99,0.03]
[1756563980738,4.84262655,199.0,198.99,0.03]
[1756563982423,0.06,199.0,198.99,0.03]
[1756563982608,0.06,199.0,198.99,0.7]
[1756563985040,0.06,199.0,198.99,90.1080047]
[1756563985197,0.06,199.0,198.99,129.3080047]
[1756563985399,0.06,199.0,198.99,139.63378115]
[1756563985634,0.06,199.0,198.99,144.4164077]
[1756563985927,0.06,199.0,198.99,139.63378115]
[1756563987513,0.06,199.0,198.99,144.4164077]
[1756563989326,0.06,199.0,198.99,139.63378115]
[1756563991025,4.84262655,199.0,198.99,79.63]
[1756563993630,0.06,199.0,198.99,80.32]
[1756563994206,0.06,199.0,198.99,85.102627]
[1756563994731,0.06,199.0,198.99,124.52537815]
[1756563996214,0.06,199.0,198.99,129.30800515]
[1756563996411,0.06,199.0,198.99,124.282627]
[1756563996632,4.84262655,199.0,198.99,4.812627]
[1756563996833,4.84262655,199.0,198.99,39.21]
[1756563997137,0.06,199.0,198.99,39.21]
[1756563997636,0.06,199.0,198.99,0.03]
[1756563997826,4.84262655,199.0,198.99,0.03]
[1756563999339,0.06,199.0,198.99,0.03]
[1756563999748,0.06,199.0,198.99,0.72]
[1756564000327,0.06,199.0,198.99,0.03]
[1756564001410,4.84262655,199.0,198.99,0.03]
[1756564001616,30.84262655,199.0,198.99,0.03]
[1756564004644,31.41262655,199.0,198.99,0.03]
[1756564005139,36.43775217,199.0,198.99,0.03]
[1756564005719,31.65512562,199.0,198.99,0.03]
[1756564005932,36.43775217,199.0,198.99,0.03]
[1756564006132,40.63410591,199.0,198.99,0.03]
[1756564006843,36.43775217,199.0,198.99,0.03]
[1756564007012,31.41262655,199.0,198.99,0.03]
[1756564007212,26.06,199.0,198.99,0.03]
[1756564007436,30.84262655,199.0,198.99,0.03]
[1756564008220,0.06,199.0,198.99,0.72]
[1756564009749,0.06,199.0,198.99,5.74537815]
[1756564011958,0.06,199.0,198.99,0.03]
[1756564012255,0.06,199.0,198.99,5.74537815]
[1756564016031,0.06,199.0,198.99,10.52800515]
[1756564017545,0.06,199.0,198.99,94.9106317]
[1756564018224,0.06,199.0,198.99,134.0906317]
[1756564019735,0.06,199.02,199.01,4.78262655]
[1756564019950,0.06,199.02,199.01,43.94262655]
[1756564020169,0.06,199.04,199.01,124.23262655]
[1756564020328,0.06,199.04,199.03,4.78262655]
[1756564020655,0.06,199.04,199.03,123.54262655]
[1756564020840,0.06,199.04,199.03,121.463845]
[1756564021156,0.06,199.04,199.03,126.24647155]
[1756564021643,0.06,199.04,199.03,131.27083973]
[1756564022232,0.06,199.04,199.03,92.11083973]
[1756564022459,0.06,199.04,199.03,131.27083973]
[1756564022628,0.06,199.04,199.03,7.03821318]
[1756564022831,0.06,199.02,198.99,0.03]
[1756564023034,4.84262655,199.02,199.0,39.16]
[1756564023434,0.06,199.02,199.0,39.16]
[1756564023637,0.06,199.02,199.01,5.71487312]
[1756564023848,0.06,199.02,199.01,5.02487312]
[1756564024051,4.84262655,199.02,198.99,15.139164]
[1756564024259,4.84262655,199.02,199.0,39.16]
[1756564024647,4.78262655,199.01,198.99,0.03]
[1756564024928,4.78262655,199.0,198.99,39.19]
[1756564025155,5.35262655,199.0,198.99,39.19]